fUST/lending_fUST_20251014
["ID","MTS","AMOUNT","RATE_DAILY","PERIOD"]
[391127497,1760376638485,-500.0,0.00024141,2]
[391127498,1760376638496,-500.0,0.00024141,2]
[391127499,1760376638508,-268.25553181,0.00024141,2]
[391127500,1760376638519,-500.0,0.00024141,2]
[391127501,1760376638528,-500.0,0.00024141,2]
[391127502,1760376638538,-500.0,0.00024141,2]
[391127503,1760376638548,-500.0,0.00024141,2]
[391127504,1760376638558,-500.0,0.00024141,2]
[391127505,1760376638568,-500.0,0.00024141,2]
[391127506,1760376638577,-500.0,0.00024141,2]
[391127507,1760376638587,-500.0,0.00024141,2]
[391127508,1760376638596,-500.0,0.00024141,2]
[391127509,1760376638607,-500.0,0.00024141,2]
[391127510,1760376638621,-500.0,0.00024141,2]
[391127511,1760376638630,-500.0,0.00024141,2]
[391127512,1760376638639,-168.53289,0.00024141,2]
[391127513,1760376638648,-200.0,0.00024141,2]
[391127514,1760376638657,-500.0,0.00024141,2]
[391127515,1760376638667,-500.0,0.00024141,2]
[391127516,1760376638676,-484.131005,0.00024141,2]
[391127517,1760376638686,-500.0,0.00024141,2]
[391127518,1760376638697,-500.0,0.00024141,2]
[391127519,1760376638708,-500.0,0.00024141,2]
[391127520,1760376638718,-367.21387822,0.00024141,2]
[391127521,1760376638728,-500.0,0.00024141,2]
[391127522,1760376638739,-500.0,0.00024141,2]
[391127523,1760376638750,-500.0,0.00024141,2]
[391127524,1760376638760,-500.0,0.00024141,2]
[391127525,1760376638769,-500.0,0.00024141,2]
[391127526,1760376638779,-500.0,0.00024141,2]
[391127527,1760376638788,-500.0,0.00024141,2]
[391127528,1760376638798,-500.0,0.00024141,2]
[391127529,1760376638808,-500.0,0.00024141,2]
[391127530,1760376638817,-500.0,0.00024141,2]
[391127531,1760376638827,-500.0,0.00024141,2]
[391127532,1760376638836,-500.0,0.00024141,2]
[391127533,1760376638846,-500.0,0.00024141,2]
[391127534,1760376638855,-442.37903524,0.00024141,2]
[391127535,1760376638864,-500.0,0.00024141,2]
[391127536,1760376638874,-500.0,0.00024141,2]
[391127537,1760376638883,-569.67740467,0.00024141,2]
[391127538,1760376638892,-500.0,0.00024141,2]
[391127539,1760376638902,-500.0,0.00024141,2]
[391127540,1760376638911,-500.0,0.00024141,2]
[391127541,1760376638920,-500.0,0.00024141,2]
[391127542,1760376638929,-500.0,0.00024141,2]
[391127543,1760376638939,-500.0,0.00024141,2]
[391127544,1760376638948,-500.0,0.00024141,2]
[391127545,1760376638958,-500.0,0.00024141,2]
[391127546,1760376638967,-500.0,0.00024141,2]
[391127547,1760376638977,-500.0,0.00024141,2]
[391127548,1760376638987,-37062.49388026,0.00024142,2]
[391127549,1760376638997,-204.08497015,0.00024218,2]
[391127550,1760376639006,-686.36,0.00024554,10]
[391127551,1760376639017,-50000.0,0.00024564,2]
[391127552,1760376639028,-1195.0,0.00024571,2]
[391127553,1760376639037,-1190.24371161,0.00024576,2]
[391127554,1760376639047,-1037.44,0.00024657,2]
[391127555,1760376639057,-1037.44,0.00024657,2]
[391127556,1760376639068,-1037.44,0.00024657,2]
[391127557,1760376639078,-1037.44,0.00024657,2]
[391127558,1760376639088,-1037.44,0.00024657,2]
[391127559,1760376639098,-1037.44,0.00024657,2]
[391127560,1760376639109,-1037.44,0.00024657,2]
[391127561,1760376639119,-1037.44,0.00024657,2]
[391127562,1760376639129,-1037.44,0.00024657,2]
[391127563,1760376639139,-1037.44,0.00024657,2]
[391127564,1760376639149,-1037.44,0.00024657,2]
[391127565,1760376639159,-1037.44,0.00024657,2]
[391127566,1760376639168,-1037.44,0.00024657,2]
[391127567,1760376639178,-1037.44,0.00024657,2]
[391127568,1760376639188,-1037.44,0.00024657,2]
[391127569,1760376639198,-1037.44,0.00024657,2]
[391127570,1760376639208,-1037.44,0.00024657,2]
[391127571,1760376639218,-1037.44,0.00024657,2]
[391127572,1760376639227,-1037.44,0.00024657,2]
[391127573,1760376639238,-1037.44,0.00024657,2]
[391127574,1760376639248,-1037.44,0.00024657,2]
[391127575,1760376639258,-206.98696686,0.00024759,2]
[391127576,1760376639268,-204.25716814,0.000248,2]
[391127577,1760376639278,-1190.24371161,0.00024811,2]
[391127578,1760376639288,-206.98696686,0.00024834,2]
[391127579,1760376639298,-571.89181403,0.00024849,2]
[391127580,1760376639308,-222.95401153,0.00024849,2]
[391127581,1760376639318,-1633.08,0.0002485,3]
[391127582,1760376639327,-816.54,0.0002485,3]
[391127583,1760376639337,-816.54,0.0002485,3]
[391127584,1760376639346,-21085.97223986,0.0002485,3]
[391127585,1760376639355,-916.96,0.00024859,4]
[391127586,1760376639365,-916.96,0.00024859,4]
[391127587,1760376639375,-916.96,0.00024859,4]
[391127588,1760376639385,-916.96,0.00024859,4]
[391127589,1760376639394,-916.96,0.00024859,4]
[391127590,1760376639403,-916.96,0.00024859,4]
[391127591,1760376639413,-916.96,0.00024859,4]
[391127592,1760376639422,-916.96,0.00024859,4]
[391127593,1760376639436,-916.96,0.00024859,4]
[391127594,1760376639445,-916.96,0.00024859,4]
[391127595,1760376639455,-916.96,0.00024859,4]
[391127596,1760376639464,-916.96,0.00024859,4]
[391127597,1760376639475,-916.96,0.00024859,4]
[391127598,1760376639484,-916.96,0.00024859,4]
[391127599,1760376639494,-916.96,0.00024859,4]
[391127600,1760376639505,-916.96,0.00024859,4]
[391127601,1760376639518,-916.96,0.00024859,4]
[391127602,1760376639528,-916.96,0.00024859,4]
[391127603,1760376639538,-916.96,0.00024859,4]
[391127604,1760376639548,-916.96,0.00024859,4]
[391127605,1760376639557,-916.96,0.00024859,4]
[391127606,1760376639567,-916.96,0.00024859,4]
[391127607,1760376639576,-916.96,0.00024859,4]
[391127608,1760376639585,-917.11634309,0.00024859,4]
[391127609,1760376639595,-21085.97,0.0002486,3]
[391127610,1760376639604,-120063.69986695,0.000249,2]
[391127611,1760376639616,-1953.41200201,0.000249,2]
[391127612,1760376639628,-49795.74749504,0.000249,2]
[391127613,1760376639638,-151.0,0.000249,7]
[391127614,1760376639648,-151.0,0.000249,7]
[391127615,1760376639657,-151.0,0.000249,7]
[391127616,1760376639666,-151.00000003,0.000249,7]
[391127617,1760376639676,-206.98696686,0.0002491,2]
[391127618,1760376639685,-230.04496175,0.00024919,2]
[391127619,1760376639696,-0.90424455,0.00024919,2]
[391127620,1760376639705,-306.93225525,0.00024947,2]
[391127621,1760376639718,-2.40981361,0.00024947,2]
[391127622,1760376639727,-213.04992668,0.00024947,2]
[391127623,1760376639737,-500.0,0.00024958,4]
[391127624,1760376639746,-395.79620322,0.00024958,4]
[391127625,1760376639756,-520.0,0.00024958,3]
[391127626,1760376639765,-206.98696686,0.00024985,2]
[391127627,1760376639775,-50.02766116,0.0002499,2]
[391127634,1760376640383,-1037.44,0.00024657,2]
[391127635,1760376640394,-1037.44,0.00024657,2]
[391127636,1760376640403,-1037.58,0.00024657,2]
[391127637,1760376640413,-42903.18717994,0.0002499,2]
[391127638,1760376640423,-440.05506148,0.00025,7]
[391127639,1760376640438,-24859.70124913,0.00025,3]
[391127640,1760376640454,-22682.27261724,0.00025,3]
[391127641,1760376640464,-1190.24371161,0.00025037,2]
[391127642,1760376640473,-206.98696686,0.0002506,2]
[391127643,1760376640482,-104.01522228,0.0002515,5]
[391127644,1760376640496,-395.98477772,0.0002515,5]
[391127645,1760376640506,-11802.51259156,0.0002515,2]
[391127646,1760376640516,-13910.14832204,0.0002515,2]
[391127647,1760376640529,-5744.496,0.0002515,2]
[391127652,1760376643619,-555.21288921,0.0002515,2]
[391127654,1760376643631,-51037.81932271,0.0002515,2]
[391127682,1760376892217,199999.979999,0.00030502,60]
[391127732,1760377832583,-163.97118609,0.0002276,2]
[391127734,1760377832593,-183.299015,0.0002286,2]
[391127735,1760377832601,-150.0,0.0002286,2]
[391127737,1760377832611,-169.5172239,0.00023126,2]
[391127739,1760377832620,-1000.0,0.00023369,30]
[391127741,1760377832628,-351.053778,0.0002337,2]
[391127743,1760377832637,-172.5,0.0002346,2]
[391127745,1760377832646,-2121.80223548,0.00023786,2]
[391127747,1760377832655,-2752.76205128,0.00023928,2]
[391127749,1760377832664,-1200.0,0.00023938,2]
[391127751,1760377832674,-300.0,0.00023939,2]
[391127753,1760377832683,-300.0,0.00023939,2]
[391127755,1760377832693,-300.0,0.00023939,2]
[391127757,1760377832703,-300.0,0.00023939,2]
[391127759,1760377832711,-50000.0,0.0002394,2]
[391127760,1760377832720,-1147.59597942,0.0002394,2]
[391127761,1760377832730,-1200.0,0.00024017,2]
[391127762,1760377832740,-331.0,0.00024017,10]
[391127764,1760377832750,-631.2,0.00024017,10]
[391127766,1760377832763,-526.0,0.00024017,10]
[391127767,1760377832772,-417.77,0.00024018,3]
[391127770,1760377832781,-1234.55349475,0.00024018,2]
[391127772,1760377832791,-1253.31,0.00024019,3]
[391127774,1760377832802,-281.17350901,0.00024026,2]
[391127776,1760377832811,-2506.61,0.00024029,3]
[391127778,1760377832820,-208.88,0.0002403,3]
[391127780,1760377832830,-626.68,0.0002403,3]
[391127783,1760377832840,-500.0,0.00024039,2]
[391127786,1760377832849,-271.08401904,0.00024039,2]
[391127788,1760377832858,-211.21287598,0.00024039,2]
[391127791,1760377832866,-285542.12316776,0.0002404,2]
[391127793,1760377832877,-1510.84877075,0.0002404,2]
[391127894,1760377838722,-500.0,0.00024016,2]
[391127895,1760377838732,-500.0,0.00024016,2]
[391127896,1760377838741,-500.0,0.00024016,2]
[391127897,1760377838753,-500.0,0.00024016,2]
[391127898,1760377838763,-500.0,0.00024016,2]
[391127899,1760377838773,-500.0,0.00024016,2]
[391127900,1760377838783,-500.0,0.00024016,2]
[391127901,1760377838797,-500.0,0.00024016,2]
[391127902,1760377838806,-500.0,0.00024016,2]
[391127903,1760377838819,-500.0,0.00024016,2]
[391127904,1760377838831,-388.53289,0.00024016,2]
[391127905,1760377838841,-586.54237254,0.00024016,2]
[391127906,1760377838850,-500.0,0.00024016,2]
[391127907,1760377838864,-500.0,0.00024016,2]
[391127908,1760377838873,-559.68551044,0.00024016,2]
[391127909,1760377838883,-276.30539383,0.00024016,2]
[391127910,1760377838892,-500.0,0.00024016,2]
[391127911,1760377838901,-500.0,0.00024016,2]
[391127912,1760377838911,-500.0,0.00024016,2]
[391127913,1760377838921,-500.0,0.00024016,2]
[391127914,1760377838930,-500.0,0.00024016,2]
[391127915,1760377838939,-500.0,0.00024016,2]
[391127916,1760377838948,-500.0,0.00024016,2]
[391127917,1760377838957,-500.0,0.00024016,2]
[391127918,1760377838967,-500.0,0.00024016,2]
[391127919,1760377838977,-500.0,0.00024016,2]
[391127920,1760377838986,-485.69388757,0.00024016,2]
[391127921,1760377838995,-500.0,0.00024016,2]
[391127922,1760377839004,-332.2605,0.00024016,2]
[391127923,1760377839013,-500.0,0.00024016,2]
[391127924,1760377839023,-500.0,0.00024016,2]
[391127925,1760377839032,-500.0,0.00024016,2]
[391127926,1760377839046,-500.0,0.00024016,2]
[391127927,1760377839056,-500.0,0.00024016,2]
[391127928,1760377839066,-500.0,0.00024016,2]
[391127929,1760377839075,-500.0,0.00024016,2]
[391127930,1760377839084,-500.0,0.00024016,2]
[391127931,1760377839094,-500.0,0.00024016,2]
[391127932,1760377839219,-500.0,0.00024016,2]
[391127933,1760377839230,-500.0,0.00024016,2]
[391127934,1760377839239,-500.0,0.00024016,2]
[391127935,1760377839249,-500.0,0.00024016,2]
[391127936,1760377839258,-500.0,0.00024016,2]
[391127937,1760377839268,-500.0,0.00024016,2]
[391127938,1760377839278,-500.0,0.00024016,2]
[391127939,1760377839288,-500.0,0.00024016,2]
[391127940,1760377839298,-500.0,0.00024016,2]
[391127941,1760377839308,-500.0,0.00024016,2]
[391127942,1760377839317,-500.0,0.00024016,2]
[391127943,1760377839326,-500.0,0.00024016,2]
[391127944,1760377839335,-500.0,0.00024016,2]
[391127945,1760377839345,-500.0,0.00024016,2]
[391127946,1760377839354,-500.0,0.00024016,2]
[391127947,1760377839364,-500.0,0.00024016,2]
[391127948,1760377839373,-268.083067,0.00024016,2]
[391127949,1760377839383,-500.0,0.00024016,2]
[391127950,1760377839392,-500.0,0.00024016,2]
[391127951,1760377839401,-500.0,0.00024016,2]
[391127952,1760377839411,-500.0,0.00024016,2]
[391127953,1760377839420,-500.0,0.00024016,2]
[391127954,1760377839429,-500.0,0.00024016,2]
[391127955,1760377839438,-447.41113371,0.00024016,2]
[391127956,1760377839447,-500.0,0.00024016,2]
[391127957,1760377839456,-500.0,0.00024016,2]
[391127958,1760377839466,-500.0,0.00024016,2]
[391127959,1760377839475,-500.0,0.00024016,2]
[391127960,1760377839484,-500.0,0.00024016,2]
[391127961,1760377839494,-500.0,0.00024016,2]
[391127962,1760377839504,-500.0,0.00024016,2]
[391127963,1760377839514,-500.0,0.00024016,2]
[391127964,1760377839524,-500.0,0.00024016,2]
[391127965,1760377839534,-500.0,0.00024016,2]
[391127966,1760377839545,-500.0,0.00024016,2]
[391127967,1760377839554,-500.0,0.00024016,2]
[391127968,1760377839563,-500.0,0.00024016,2]
[391127969,1760377839572,-500.0,0.00024016,2]
[391127970,1760377839582,-500.0,0.00024016,2]
[391127971,1760377839591,-500.0,0.00024016,2]
[391127972,1760377839601,-500.0,0.00024016,2]
[391127973,1760377839610,-500.0,0.00024016,2]
[391127974,1760377839619,-500.0,0.00024016,2]
[391127975,1760377839628,-500.0,0.00024016,2]
[391127976,1760377839637,-500.0,0.00024016,2]
[391127977,1760377839646,-500.0,0.00024016,2]
[391127978,1760377839655,-500.0,0.00024016,2]
[391127979,1760377839665,-500.0,0.00024016,2]
[391127980,1760377839674,-500.0,0.00024016,2]
[391127981,1760377839683,-500.0,0.00024016,2]
[391127982,1760377839693,-581.21642431,0.00024016,2]
[391127983,1760377839702,-500.0,0.00024016,2]
[391127984,1760377839711,-500.0,0.00024016,2]
[391127985,1760377839720,-500.0,0.00024016,2]
[391127986,1760377839728,-500.0,0.00024016,2]
[391127987,1760377839737,-500.0,0.00024016,2]
[391127988,1760377839746,-438.33,0.0002403,10]
[391127989,1760377839760,-82947.02806149,0.0002404,2]
[391127990,1760377839769,-500.0,0.0002404,5]
[391127991,1760377839778,-151.0,0.0002404,7]
[391127992,1760377839787,-151.0,0.0002404,7]
[391127993,1760377839797,-151.0,0.0002404,7]
[391127994,1760377839806,-749.09678355,0.00024056,2]
[391127995,1760377839815,-195.0,0.0002406,2]
[391127996,1760377839824,-160.0,0.00024132,2]
[391127997,1760377839834,-1234.55349475,0.00024225,2]
[391127998,1760377839843,-500.0,0.00024314,5]
[391127999,1760377839852,-338.0,0.00024456,2]
[391128000,1760377839861,-500.0,0.00024588,5]
[391128001,1760377839870,-4849.98500643,0.000246,2]
[391128002,1760377839879,-1234.55349475,0.00024611,2]
[391128003,1760377839889,-400.0,0.00024657,2]
[391128004,1760377839900,-500.0,0.00024657,2]
[391128005,1760377839909,-557.64140849,0.00024657,2]
[391128006,1760377839918,-500.0,0.00024657,2]
[391128007,1760377839927,-318.29009773,0.00024657,2]
[391128008,1760377839938,-916.96,0.00024657,2]
[391128009,1760377839946,-916.96,0.00024657,2]
[391128010,1760377839955,-916.96,0.00024657,2]
[391128011,1760377839965,-916.96,0.00024657,2]
[391128012,1760377839975,-916.96,0.00024657,2]
[391128013,1760377839984,-916.96,0.00024657,2]
[391128014,1760377839993,-916.96,0.00024657,2]
[391128015,1760377840002,-916.96,0.00024657,2]
[391128016,1760377840011,-916.96,0.00024657,2]
[391128017,1760377840022,-916.96,0.00024657,2]
[391128018,1760377840032,-916.96,0.00024657,2]
[391128019,1760377840043,-916.96,0.00024657,2]
[391128020,1760377840052,-916.96,0.00024657,2]
[391128021,1760377840062,-916.96,0.00024657,2]
[391128022,1760377840071,-916.96,0.00024657,2]
[391128023,1760377840080,-916.96,0.00024657,2]
[391128024,1760377840089,-916.96,0.00024657,2]
[391128025,1760377840098,-916.96,0.00024657,2]
[391128028,1760377840107,-916.96,0.00024657,2]
[391128030,1760377840116,-916.96,0.00024657,2]
[391128031,1760377840125,-916.96,0.00024657,2]
[391128033,1760377840134,-916.96,0.00024657,2]
[391128035,1760377840143,-916.96,0.00024657,2]
[391128036,1760377840153,-917.11634309,0.00024657,2]
[391128037,1760377840162,-501.7530328,0.00024657,2]
[391128038,1760377840172,-1318.36,0.00024657,2]
[391128039,1760377840181,-1318.36,0.00024657,2]
[391128040,1760377840190,-1318.36,0.00024657,2]
[391128041,1760377840202,-1318.36,0.00024657,2]
[391128042,1760377840212,-1318.36,0.00024657,2]
[391128043,1760377840224,-1318.36,0.00024657,2]
[391128044,1760377840234,-1318.36,0.00024657,2]
[391128045,1760377840244,-1318.36,0.00024657,2]
[391128046,1760377840253,-1318.36,0.00024657,2]
[391128047,1760377840263,-1318.36,0.00024657,2]
[391128048,1760377840272,-1318.36,0.00024657,2]
[391128049,1760377840281,-1318.36,0.00024657,2]
[391128050,1760377840290,-1318.36,0.00024657,2]
[391128051,1760377840300,-1318.36,0.00024657,2]
[391128052,1760377840310,-1318.36,0.00024657,2]
[391128053,1760377840319,-1318.36,0.00024657,2]
[391128054,1760377840328,-1318.36,0.00024657,2]
[391128055,1760377840338,-217.5,0.0002466,2]
[391128057,1760377840348,-228.77237914,0.00024679,2]
[391128059,1760377840357,-1234.55349477,0.00024727,2]
[391128060,1760377840366,-151.0,0.000248,7]
[391128061,1760377840375,-151.0,0.000248,7]
[391128062,1760377840384,-2752.76205126,0.00024855,2]
[391128063,1760377840393,-500.0,0.00024862,5]
[391128064,1760377840402,-183015.42165342,0.000249,2]
[391128065,1760377840415,-781.95965458,0.000249,2]
[391128066,1760377840426,-12560.12790673,0.000249,2]
[391128067,1760377840438,-6524.14846185,0.000249,2]
[391128070,1760377840551,-335.46926852,0.000249,2]
[391128107,1760378067376,1725.54173772,0.00030509,120]
[391128125,1760378726972,280.891059,0.00013699,2]
[391128126,1760378727185,280.891059,0.00020187,2]
[391128127,1760378774547,188.02329267,0.00020625,2]
[391128131,1760378961576,300.0,0.000206,2]
[391128147,1760379033379,-150.0,0.00021601,2]
[391128148,1760379033389,-200.0,0.00022853,2]
[391128149,1760379033398,-150.0,0.00022853,2]
[391128150,1760379033407,-300.0,0.00022989,2]
[391128152,1760379033416,-300.0,0.00022989,2]
[391128154,1760379033425,-300.0,0.00022989,2]
[391128155,1760379033434,-378.14594359,0.00022989,2]
[391128251,1760379037822,-37062.15115956,0.00021996,2]
[391128253,1760379037832,-821.85405641,0.00022989,2]
[391128255,1760379037842,-26548.46451407,0.0002299,2]
[391128257,1760379037852,-172.5,0.00023453,2]
[391128258,1760379037861,-1304.3870499,0.00023456,2]
[391128261,1760379037871,-227.00162882,0.00023478,2]
[391128262,1760379037880,-1304.3870499,0.00023719,2]
[391128264,1760379037890,-590.45371687,0.0002382,2]
[391128266,1760379037899,-590.45371687,0.00023833,2]
[391128268,1760379037909,-590.45371687,0.00023847,2]
[391128269,1760379037919,-50000.0,0.00023847,2]
[391128270,1760379037929,-590.45371687,0.0002386,2]
[391128271,1760379037938,-590.45371687,0.00023873,2]
[391128272,1760379037947,-5425.6,0.000239,10]
[391128273,1760379037956,-885.0,0.00023909,2]
[391128274,1760379037965,-253.72,0.00023909,3]
[391128276,1760379037974,-761.16,0.00023909,3]
[391128277,1760379037985,-4169.97,0.00023909,10]
[391128278,1760379037995,-6510.72,0.00023909,10]
[391128279,1760379038004,-500.0,0.00023909,2]
[391128280,1760379038013,-500.0,0.00023909,2]
[391128281,1760379038022,-500.0,0.00023909,2]
[391128282,1760379038031,-500.0,0.00023909,2]
[391128283,1760379038041,-500.0,0.00023909,2]
[391128284,1760379038051,-500.0,0.00023909,2]
[391128285,1760379038062,-500.0,0.00023909,2]
[391128286,1760379038072,-500.0,0.00023909,2]
[391128287,1760379038086,-500.0,0.00023909,2]
[391128288,1760379038095,-500.0,0.00023909,2]
[391128289,1760379038105,-456.95571068,0.00023909,2]
[391128290,1760379038114,-500.0,0.00023909,2]
[391128291,1760379038124,-586.54237254,0.00023909,2]
[391128292,1760379038133,-500.0,0.00023909,2]
[391128293,1760379038143,-500.0,0.00023909,2]
[391128294,1760379038152,-500.0,0.00023909,2]
[391128295,1760379038165,-500.0,0.00023909,2]
[391128296,1760379038175,-500.0,0.00023909,2]
[391128297,1760379038185,-500.0,0.00023909,2]
[391128298,1760379038195,-500.0,0.00023909,2]
[391128299,1760379038205,-500.0,0.00023909,2]
[391128300,1760379038214,-500.0,0.00023909,2]
[391128301,1760379038225,-500.0,0.00023909,2]
[391128302,1760379038235,-500.0,0.00023909,2]
[391128303,1760379038245,-500.0,0.00023909,2]
[391128304,1760379038255,-500.0,0.00023909,2]
[391128305,1760379038266,-649.03445,0.00023909,2]
[391128306,1760379038275,-485.69388757,0.00023909,2]
[391128307,1760379038284,-506.67557233,0.00023909,2]
[391128308,1760379038294,-500.0,0.00023909,2]
[391128309,1760379038303,-500.0,0.00023909,2]
[391128310,1760379038315,-500.0,0.00023909,2]
[391128311,1760379038325,-500.0,0.00023909,2]
[391128312,1760379038335,-500.0,0.00023909,2]
[391128313,1760379038348,-500.0,0.00023909,2]
[391128314,1760379038358,-500.0,0.00023909,2]
[391128315,1760379038367,-500.0,0.00023909,2]
[391128316,1760379038377,-500.0,0.00023909,2]
[391128317,1760379038388,-500.0,0.00023909,2]
[391128318,1760379038397,-500.0,0.00023909,2]
[391128319,1760379038407,-500.0,0.00023909,2]
[391128320,1760379038416,-500.0,0.00023909,2]
[391128321,1760379038425,-500.0,0.00023909,2]
[391128322,1760379038435,-500.0,0.00023909,2]
[391128323,1760379038444,-500.0,0.00023909,2]
[391128324,1760379038454,-500.0,0.00023909,2]
[391128325,1760379038464,-500.0,0.00023909,2]
[391128326,1760379038474,-500.0,0.00023909,2]
[391128327,1760379038484,-500.0,0.00023909,2]
[391128328,1760379038494,-500.0,0.00023909,2]
[391128329,1760379038503,-500.0,0.00023909,2]
[391128330,1760379038513,-500.0,0.00023909,2]
[391128331,1760379038523,-500.0,0.00023909,2]
[391128332,1760379038532,-500.0,0.00023909,2]
[391128333,1760379038541,-500.0,0.00023909,2]
[391128334,1760379038551,-588.53289,0.00023909,2]
[391128335,1760379038562,-500.0,0.00023909,2]
[391128336,1760379038572,-518.083067,0.00023909,2]
[391128337,1760379038582,-500.0,0.00023909,2]
[391128338,1760379038591,-1880.77,0.0002391,3]
[391128339,1760379038600,-940.39,0.0002391,3]
[391128340,1760379038609,-470.19,0.0002391,3]
[391128341,1760379038619,-235.1,0.0002391,3]
[391128342,1760379038629,-1304.3870499,0.00023917,2]
[391128343,1760379038639,-705.3,0.00023918,3]
[391128344,1760379038648,-500.0,0.00023919,2]
[391128345,1760379038657,-160.0,0.0002392,2]
[391128346,1760379038666,-1000.0,0.00023927,2]
[391128347,1760379038675,-150.0,0.00023927,2]
[391128348,1760379038684,-300.0,0.00023927,2]
[391128349,1760379038694,-450.0,0.00023927,2]
[391128350,1760379038703,-600.0,0.00023927,2]
[391128351,1760379038712,-750.0,0.00023927,2]
[391128352,1760379038721,-796.96311072,0.00023927,2]
[391128353,1760379038730,-635.65878237,0.00023927,2]
[391128354,1760379038740,-240.72963712,0.00023927,2]
[391128355,1760379038749,-155.49748579,0.00023927,2]
[391128356,1760379038760,-151.0,0.00023928,7]
[391128357,1760379038769,-151.0,0.00023928,7]
[391128358,1760379038778,-151.0,0.00023928,7]
[391128359,1760379038787,-151.0,0.00023928,7]
[391128360,1760379038798,-151.0,0.00023928,7]
[391128361,1760379038808,-151.220237,0.00023928,7]
[391128362,1760379038818,-151.0,0.00023928,7]
[391128363,1760379038828,-151.0,0.00023928,7]
[391128364,1760379038837,-151.0,0.00023928,7]
[391128365,1760379038847,-151.0,0.00023928,7]
[391128366,1760379038857,-151.0,0.00023928,7]
[391128367,1760379038866,-151.0,0.00023928,7]
[391128368,1760379038876,-151.0,0.00023928,7]
[391128369,1760379038886,-151.0,0.00023928,7]
[391128370,1760379038896,-151.0,0.00023928,7]
[391128371,1760379038906,-151.0,0.00023928,7]
[391128372,1760379038916,-153.519234,0.00023928,7]
[391128373,1760379038926,-151.0,0.00023928,7]
[391128374,1760379038935,-266.944786,0.00023928,7]
[391128375,1760379038945,-151.0,0.00023928,7]
[391128376,1760379038954,-266.944786,0.00023928,7]
[391128377,1760379038964,-266.944786,0.00023928,7]
[391128378,1760379038974,-266.944786,0.00023928,7]
[391128379,1760379038985,-151.0,0.00023928,7]
[391128380,1760379038995,-151.0,0.00023928,7]
[391128381,1760379039004,-151.0,0.00023928,7]
[391128382,1760379039014,-151.0,0.00023928,7]
[391128383,1760379039023,-151.0,0.00023928,7]
[391128384,1760379039032,-151.0,0.00023928,7]
[391128385,1760379039042,-151.0,0.00023928,7]
[391128386,1760379039051,-151.0,0.00023928,7]
[391128387,1760379039062,-151.0,0.00023928,7]
[391128388,1760379039072,-151.0,0.00023928,7]
[391128389,1760379039083,-151.0,0.00023928,7]
[391128390,1760379039094,-151.0,0.00023928,7]
[391128391,1760379039103,-156.495404,0.00023928,7]
[391128392,1760379039112,-151.0,0.00023928,7]
[391128393,1760379039123,-151.0,0.00023928,7]
[391128394,1760379039132,-151.0,0.00023928,7]
[391128395,1760379039142,-151.0,0.00023928,7]
[391128396,1760379039152,-152.004014,0.00023928,7]
[391128397,1760379039163,-151.0,0.00023928,7]
[391128398,1760379039173,-151.0,0.00023928,7]
[391128399,1760379039183,-151.472701,0.00023928,7]